bitfinex/quotes_ETHUSD_20240707
["timestamp","ask_amount","ask_price","bid_price","bid_amount"]
[1720338361236,5.3286,3006.1,3005.4,2.32913]
[1720338361433,5.3286,3006.1,3005.4,4.65822]
[1720338362066,5.3286,3006.1,3005.4,2.32909]
[1720338362429,2.32867,3006.0,3005.4,2.32909]
[1720338362662,5.3286,3006.1,3005.4,4.65818]
[1720338362862,7.65726,3006.1,3005.4,2.32909]
[1720338363067,2.3287,3006.0,3005.4,2.32909]
[1720338363267,2.3287,3006.0,3005.2,2.32924]
[1720338363572,2.3287,3006.0,3005.3,2.3292]
[1720338365936,4.236406,3006.1,3005.4,2.32912]
[1720338366184,3.0,3006.1,3005.4,4.65821]
[1720338366337,5.32862,3006.1,3005.4,4.65821]
[1720338366539,2.32867,3006.0,3005.4,2.32909]
[1720338366739,5.32862,3006.1,3005.4,2.32908]
[1720338366940,5.32862,3006.1,3005.4,4.65814]
[1720338366941,3.0,3006.1,3005.4,4.65814]
[1720338367140,2.08,3006.3,3005.6,2.32892]
[1720338367780,2.32856,3006.2,3005.6,2.32892]
[1720338368272,2.08,3006.3,3005.7,2.32889]
[1720338369645,4.40844,3006.3,3005.7,2.32889]
[1720338371174,2.08,3006.3,3005.8,2.32882]
[1720338371380,2.08,3006.3,3005.9,2.3287]
[1720338372793,2.08,3006.3,3006.0,2.32862]
[1720338373482,2.08,3006.3,3006.1,2.32859]
[1720338374566,2.08,3006.3,3006.2,2.32852]
[1720338378697,2.08,3006.3,3005.9,2.3287]
[1720338378845,2.08,3006.3,3005.9,4.6574]
[1720338379046,2.08,3006.3,3005.9,3.0426]
[1720338381163,2.08,3006.3,3006.0,2.32866]
[1720338381777,2.08,3006.3,3005.9,3.0426]
[1720338386059,2.08,3006.3,3005.9,5.3713]
[1720338386262,2.08,3006.3,3006.0,2.32867]
[1720338386585,2.08,3006.3,3006.1,0.537127]
[1720338388472,2.08,3006.3,3005.9,2.32871]
[1720338388678,2.08,3006.3,3006.0,2.32862]
[1720338389259,2.08,3006.3,3006.1,2.32858]
[1720338390170,2.08,3006.3,3006.1,2.32854]
[1720338391699,2.08,3006.3,3005.7,4.81048]
[1720338391896,2.08,3006.3,3005.7,2.809928]
[1720338392213,2.3286,3006.1,3005.5,2.32902]
[1720338392736,4.4085,3006.3,3005.5,2.32902]
[1720338393916,2.32859,3006.1,3005.5,2.32902]
[1720338394283,4.4085,3006.3,3005.5,2.32898]
[1720338394485,2.32856,3006.2,3005.6,0.2794794]
[1720338395824,4.65713,3006.2,3005.6,0.2794794]
[1720338396030,4.65713,3006.2,3005.5,2.32898]
[1720338396031,2.32859,3006.1,3005.5,2.32898]
[1720338398394,4.65724,3006.1,3005.5,2.32898]
[1720338398628,2.32859,3006.1,3005.5,2.32898]
[1720338398832,4.65724,3006.1,3005.5,2.32898]
[1720338399343,2.32859,3006.1,3005.5,2.32898]
[1720338399525,2.32859,3006.1,3005.5,3.3962464]
[1720338400925,2.32852,3006.2,3005.5,3.3962464]
[1720338401231,0.10885773,3006.1,3005.5,3.3962464]
[1720338401448,2.43745773,3006.1,3005.5,3.3962464]
[1720338401618,2.3286,3006.1,3005.5,3.3962464]
[1720338401935,2.3286,3006.1,3005.6,0.38620604]
[1720338402761,4.40844,3006.3,3005.7,2.32885]
[1720338402908,0.10885373,3006.2,3005.7,2.32885]
[1720338403654,2.32861,3006.1,3005.6,0.38620604]
[1720338403969,2.32861,3006.1,3005.5,3.3962764]
[1720338404840,2.32861,3006.1,3005.5,5.7252764]
[1720338405141,6.73694,3006.3,3005.5,5.7252664]
[1720338405445,3.5893306,3006.2,3005.5,5.7252664]
[1720338405756,0.1088575,3006.1,3005.6,0.61910804]
[1720338406727,0.1088575,3006.1,3005.6,2.94808804]
[1720338408898,0.10885682,3006.0,3005.6,2.94808804]
[1720338409054,2.32852,3006.2,3005.6,2.94808804]
[1720338409254,3.5893883,3006.1,3005.6,2.32898]
[1720338409484,0.10885832,3006.0,3005.6,2.32898]
[1720338410882,4.40844,3006.3,3005.6,2.32898]
[1720338411052,1.26080882,3006.2,3005.6,2.32898]
[1720338411253,1.26080882,3006.1,3005.7,2.32885]
[1720338411471,2.08,3006.3,3005.8,2.32882]
[1720338411654,0.1088527,3006.2,3005.8,2.32882]
[1720338412097,0.10885174,3006.1,3005.8,2.32882]
[1720338412390,2.08,3006.3,3005.8,2.32882]
[1720338412600,1.26073176,3006.2,3005.8,2.32882]
[1720338412758,0.10885258,3006.1,3005.8,2.32882]
[1720338412960,2.08,3006.3,3005.8,2.32882]
[1720338413201,1.26072888,3006.2,3005.8,2.32882]
[1720338413417,0.10885028,3006.1,3005.8,2.32882]
[1720338413688,2.08,3006.3,3005.8,2.32882]
[1720338414054,0.10885307,3006.2,3005.8,2.32882]
[1720338415389,0.10885056,3006.1,3005.8,2.85184436]
[1720338415700,2.08,3006.3,3005.8,2.85184436]
[1720338415860,1.26072678,3006.2,3005.9,0.987]
[1720338416061,0.10885215,3006.1,3005.9,0.987]
[1720338416256,2.08,3006.3,3005.9,0.987]
[1720338416494,0.10885018,3006.2,3005.9,3.4398]
[1720338417281,0.10885018,3006.2,3006.1,0.987]
[1720338417461,2.08,3006.3,3006.1,3.31559]
[1720338417974,2.08,3006.3,3006.2,2.32852]
[1720338423630,2.08,3006.3,3006.0,3.3156]
[1720338424115,2.08,3006.3,3006.1,2.32854]
[1720338424718,0.10884299,3006.2,3006.1,2.32854]
[1720338425333,2.08,3006.3,3005.7,2.32883]
[1720338425535,2.3286,3006.1,3005.4,2.32914]
[1720338425696,0.10884221,3006.0,3005.4,2.32908]
[1720338425885,0.10884221,3006.0,3005.5,2.32906]
[1720338426080,0.10884221,3006.0,3005.3,5.76895]
[1720338426314,0.10884221,3006.0,3005.5,0.987]
[1720338427514,0.10886111,3005.9,3005.5,0.987]
[1720338427726,0.10886111,3005.8,3005.5,0.987]
[1720338427935,4.65726,3006.1,3005.4,5.468]
[1720338428229,2.43756145,3006.0,3005.4,3.13889]
[1720338428389,2.43762145,3005.9,3005.4,0.80982]
[1720338428597,0.10886145,3005.8,3005.3,3.0]
[1720338428902,0.10886145,3005.8,3005.3,5.3292]
[1720338429436,0.10886145,3005.8,3005.4,2.32913]
[1720338429642,2.3286,3006.1,3005.4,3.094967]
[1720338429822,0.10886198,3006.0,3005.4,2.32913]
[1720338430132,2.43758198,3006.0,3005.4,2.32913]
[1720338430438,7.01558,3006.3,3005.4,2.32913]
[1720338430439,2.32857,3006.2,3005.5,2.32901]
[1720338430589,0.10885992,3006.1,3005.5,2.32901]
[1720338430925,0.10885992,3006.1,3005.5,3.094818]
[1720338431141,0.10885992,3006.1,3005.9,2.32873]
[1720338431347,2.08,3006.3,3005.9,2.32873]
[1720338431494,0.10884728,3006.2,3006.0,2.32866]
[1720338431829,2.32868,3006.0,3005.1,5.02984]
[1720338432032,2.32884,3005.8,3005.1,2.32934]
[1720338432201,0.10886185,3005.7,3005.0,0.5]
[1720338432929,1.15217424,3005.6,3005.0,0.5]
[1720338433110,0.10886185,3005.5,3005.0,0.5]
[1720338433315,2.32894,3005.7,3005.0,0.5]
[1720338433527,2.794768,3005.6,3005.0,0.5]
[1720338433834,0.10888213,3005.5,3005.0,0.5]
[1720338435225,2.32919,3005.4,3005.0,0.5]
[1720338435426,0.10888213,3005.3,3005.0,0.5]
[1720338436511,2.32906,3005.5,3005.0,0.5]
[1720338436704,0.10888583,3005.4,3005.0,0.5]
[1720338437433,3.55,3005.8,3005.1,4.92135463]
[1720338437730,3.55,3005.8,3005.3,2.32921]
[1720338438850,3.55,3005.8,3005.7,2.3289]
[1720338439641,3.55,3005.8,3005.5,2.32899]
[1720338439799,3.55,3005.8,3005.5,2.794808]
[1720338440297,3.55,3005.8,3005.3,2.32919]
[1720338440695,3.55,3005.8,3005.7,2.3289]
[1720338440956,3.55,3005.8,3005.7,7.2897]
[1720338441244,2.08,3006.3,3005.9,2.32872]
[1720338442339,2.08,3006.3,3006.0,2.32866]
[1720338445247,2.08,3006.3,3006.0,2.561526]
[1720338450062,3.55,3006.8,3006.3,2.32837]
[1720338450236,3.55,3006.8,3006.4,0.987]
[1720338450430,3.55,3006.8,3006.4,3.31535]
[1720338450756,3.55,3006.8,3006.4,2.32835]
[1720338452056,3.55,3006.8,3006.6,0.987]
[1720338452372,3.55,3006.8,3006.6,3.31515]
[1720338452537,3.55,3006.8,3006.6,2.32815]
[1720338452735,3.55,3006.8,3006.4,2.3283]
[1720338453249,3.55,3006.8,3006.5,2.32828]
[1720338453669,3.55,3006.8,3006.4,0.987]
[1720338453968,3.905,3006.8,3006.2,2.32851]
[1720338454437,3.55,3006.8,3006.2,2.32851]
[1720338455373,5.87807,3006.8,3006.1,3.0]
[1720338455665,8.2062,3006.8,3006.1,3.0]
[1720338456336,5.87807,3006.8,3006.1,5.32858]
[1720338456564,5.87807,3006.8,3006.1,7.452019]
[1720338458070,5.87807,3006.8,3006.2,2.3285]
[1720338458228,5.87807,3006.8,3006.3,3.31542]
[1720338458229,3.55,3006.8,3006.3,3.31542]
[1720338458568,3.55,3006.8,3006.5,0.987]
[1720338458775,3.55,3006.8,3006.5,3.31528]
[1720338460632,3.55,3006.8,3006.3,3.31542]
[1720338461961,3.55,3006.8,3006.3,2.32842]
[1720338462329,3.55,3006.8,3006.3,4.65681]
[1720338462545,3.55,3006.8,3006.3,2.32839]
[1720338463288,3.55,3006.8,3006.3,5.5361189]
[1720338463777,4.40772,3007.3,3006.5,2.32823]
[1720338464080,2.32785,3007.1,3006.3,3.2077189]
[1720338464233,4.79027,3007.0,3006.3,2.32838]
[1720338464436,2.32798,3006.9,3006.3,2.32838]
[1720338464833,2.32798,3006.9,3006.1,5.32857]
[1720338465038,3.039793,3006.9,3006.1,7.65712]
[1720338465346,3.039793,3006.9,3006.2,2.3285]
[1720338465552,3.039793,3006.9,3006.3,2.32841]
[1720338465774,2.32798,3006.9,3006.3,2.32841]
[1720338466340,2.4623,3007.0,3006.4,2.32836]
[1720338466538,4.7902,3007.0,3006.4,2.32836]
[1720338467759,2.32814,3006.7,3006.1,3.0]
[1720338467987,2.73112331,3006.7,3006.0,3.5]
[1720338468194,2.32814,3006.7,3006.0,3.5]
[1720338468569,2.32814,3006.7,3006.1,2.32853]
[1720338468790,4.65633,3006.7,3006.1,5.32853]
[1720338469104,2.32814,3006.7,3006.1,5.32853]
[1720338470163,4.7902,3007.0,3006.3,2.32843]
[1720338470368,1.15171561,3006.9,3006.4,0.232843]
[1720338470591,4.7902,3007.0,3006.4,0.232843]
[1720338470763,1.15166029,3006.9,3006.4,0.232843]
[1720338470979,4.7902,3007.0,3006.4,0.232843]
[1720338471180,1.15163994,3006.9,3006.4,0.232843]
[1720338471376,4.7902,3007.0,3006.4,0.232843]
[1720338471719,1.15164823,3006.9,3006.3,2.32837]
[1720338471909,2.4623,3007.0,3006.3,4.65675]
[1720338472068,1.15162794,3006.9,3006.4,2.32836]
[1720338472269,4.79021,3007.0,3006.4,2.32836]
[1720338472463,2.32782,3007.2,3006.4,2.32836]
[1720338472708,1.15158781,3007.1,3006.6,2.3282]
[1720338472894,1.15158781,3007.0,3006.6,2.3282]
[1720338473112,2.3278,3007.2,3006.6,2.3282]
[1720338473313,1.15159023,3007.1,3006.6,2.3282]
[1720338473518,1.15159023,3007.0,3006.6,2.3282]
[1720338473834,4.6556,3007.2,3006.6,2.3282]
[1720338474002,6.33783,3007.2,3006.6,2.3282]
[1720338474201,1.15158662,3007.1,3006.6,2.3282]
[1720338474397,1.15158662,3007.0,3006.7,2.32807]
[1720338474602,2.08,3007.3,3006.7,2.32807]
[1720338475090,1.15156419,3007.2,3006.7,2.32807]
[1720338475319,1.15156419,3007.1,3006.7,2.32807]
[1720338475625,2.08,3007.3,3006.7,2.32807]
[1720338475802,1.151525,3007.2,3006.7,2.32807]
[1720338475983,1.151525,3007.1,3006.7,2.32807]
[1720338476184,6.177199,3007.3,3006.7,2.32807]
[1720338476406,1.15153734,3007.2,3006.6,2.8282]
[1720338476621,1.15153734,3007.1,3006.6,2.8282]
[1720338476818,2.3279,3007.0,3006.6,0.5]
[1720338477200,1.15161125,3006.9,3006.6,0.5]
[1720338477399,2.3279,3007.0,3006.6,0.5]
[1720338477595,1.15161932,3006.9,3006.6,0.5]
[1720338477803,2.3279,3007.0,3006.6,0.5]
[1720338478221,1.15162583,3006.9,3006.6,0.5]
[1720338478393,2.3279,3007.0,3006.6,0.5]
[1720338478593,1.15162493,3006.9,3006.6,0.5]
[1720338478906,4.40768,3007.3,3006.6,2.82813]
[1720338479091,1.15153905,3007.2,3006.7,2.32812]
[1720338479286,1.15153905,3007.1,3006.8,2.32801]
[1720338479498,2.08,3007.3,3006.8,4.656]
[1720338479807,1.15143606,3007.2,3006.8,4.656]
[1720338479994,2.08,3007.3,3006.8,7.3645]
[1720338480315,1.15146758,3007.2,3006.8,7.3645]
[1720338480526,2.08,3007.3,3006.8,8.2031777]
[1720338481038,1.15145364,3007.2,3006.8,5.8751677]
[1720338481213,2.08,3007.3,3006.8,2.32799]
[1720338481417,1.15145623,3007.2,3006.8,2.32799]
[1720338481623,1.15145623,3007.1,3006.8,2.32799]
[1720338481830,2.08,3007.3,3006.8,2.32799]
[1720338482135,1.1515119,3007.2,3006.8,2.32799]
[1720338482351,3.4793519,3007.1,3006.6,0.5]
[1720338482501,1.1515119,3007.0,3006.6,0.5]
[1720338482707,1.1515119,3007.0,3006.6,2.8282]
[1720338483027,6.73539,3007.3,3006.6,2.8282]
[1720338483225,1.26035315,3007.2,3006.6,5.942851]
[1720338483554,1.15153326,3007.1,3006.7,2.32808]
[1720338483751,4.40768,3007.3,3006.7,2.32808]
[1720338483956,1.26035824,3007.2,3006.7,2.32808]
[1720338484273,1.26035824,3007.1,3006.7,2.32808]
[1720338484457,4.40768,3007.3,3006.7,5.2884681]
[1720338484770,1.26035114,3007.2,3006.7,5.2884681]
[1720338484931,1.26035114,3007.1,3006.7,5.2884681]
[1720338485130,4.40768,3007.3,3006.7,5.2884681]
[1720338485355,1.26035058,3007.2,3006.7,2.9603881]
[1720338485560,1.26035058,3007.1,3006.7,2.32808]
[1720338485728,4.40768,3007.3,3006.7,2.32808]
[1720338485729,0.10881967,3007.0,3006.7,2.32808]
[1720338485925,2.32781,3007.2,3006.6,0.5]
[1720338486127,1.26037725,3007.1,3006.6,0.5]
[1720338486356,1.26037725,3007.0,3006.6,0.5]
[1720338486672,2.32786,3007.1,3006.6,0.5]
[1720338486673,0.10882197,3006.9,3006.6,0.5]
[1720338486892,2.32786,3007.1,3006.6,0.5]
[1720338487056,1.26037761,3007.0,3006.6,0.5]
[1720338487260,2.32786,3007.1,3006.6,0.5]
[1720338487582,1.26038474,3007.0,3006.6,0.5]
[1720338487882,0.10882264,3006.9,3006.6,0.5]
[1720338488185,2.32786,3007.1,3006.6,0.5]
[1720338488370,1.26040308,3007.0,3006.6,0.5]
[1720338488555,0.1088242,3006.9,3006.6,0.5]
[1720338488763,4.65573,3007.1,3006.6,0.5]
[1720338488991,1.26040368,3007.0,3006.6,0.5]
[1720338489288,0.10882425,3006.9,3006.6,0.5]
[1720338489482,4.65573,3007.1,3006.6,0.5]
[1720338489685,1.26039993,3007.0,3006.6,0.5]
[1720338489846,0.10882393,3006.9,3006.6,0.5]
[1720338490048,4.65573,3007.1,3006.6,0.5]
[1720338490385,1.26040375,3007.0,3006.6,0.5]
[1720338490602,0.10882426,3006.9,3006.6,0.5]
[1720338490749,4.65573,3007.1,3006.6,0.5]
[1720338491082,1.26040365,3007.0,3006.6,0.5]
[1720338491278,0.10882425,3006.9,3006.6,0.5]
[1720338491478,4.65573,3007.1,3006.6,0.5]
[1720338491645,1.26040303,3007.0,3006.6,0.5]
[1720338491977,0.10882415,3006.9,3006.6,0.5]
[1720338492177,2.32786,3007.1,3006.6,0.5]
[1720338492382,1.26038505,3007.0,3006.6,0.782826]
[1720338492560,0.10882264,3006.9,3006.6,0.782826]
[1720338492887,4.40769,3007.3,3006.7,2.6266]
[1720338493104,1.26035143,3007.2,3006.7,4.95471]
[1720338493248,1.26035143,3007.1,3006.8,2.32804]
[1720338493455,2.08,3007.3,3006.8,2.32804]
[1720338493679,1.26037243,3007.2,3006.8,2.32804]
[1720338493882,1.26037243,3007.1,3006.8,2.32804]
[1720338494086,0.10882155,3007.0,3006.8,0.88788073]
[1720338494366,0.10882155,3006.9,3006.8,3.21593073]
[1720338494762,0.10882155,3006.9,3006.6,5.737576]
[1720338494962,2.32781,3007.2,3006.6,5.737576]
[1720338495188,1.26036628,3007.1,3006.6,5.45475]
[1720338495404,1.26036628,3007.0,3006.6,5.45475]
[1720338495639,0.10882102,3006.9,3006.6,5.45475]
[1720338495782,2.32781,3007.2,3006.6,5.45475]
[1720338495969,1.26036485,3007.1,3006.6,7.78291]
[1720338496301,0.1088209,3007.0,3006.7,2.32811]
[1720338496482,0.1088209,3006.9,3006.7,2.32811]
[1720338496808,2.08,3007.3,3006.7,2.32811]
[1720338496809,4.40771,3007.3,3006.7,2.32811]
[1720338496968,1.26035005,3007.2,3006.7,2.32811]
[1720338497169,1.26035005,3007.1,3006.7,2.32811]
[1720338497467,0.10881962,3007.0,3006.7,2.32811]
[1720338497670,0.10881962,3006.9,3006.7,3.1842251]
[1720338497867,9.12531818,3007.4,3006.8,4.928]
[1720338498170,7.41,3007.4,3007.3,4.88866]
[1720338498372,3.55,3007.5,3007.3,4.88866]
[1720338498564,3.55,3007.5,3007.3,5.610295]
[1720338498767,3.55,3007.5,3007.3,3.282635]
[1720338498967,0.05,3008.0,3007.4,2.32759]
[1720338499202,2.37719,3008.0,3007.3,2.561]
[1720338499406,1.15120148,3007.9,3007.3,2.561]
[1720338499584,1.73676063,3007.9,3007.3,2.561]
[1720338499784,0.58555915,3007.9,3007.3,2.561]
[1720338500013,1.15133393,3007.8,3007.3,2.561]
[1720338500303,1.15133393,3007.7,3007.3,2.561]
[1720338500507,2.32722,3007.9,3007.3,2.561]
[1720338500703,1.15132408,3007.8,3007.3,2.561]
[1720338500905,2.32722,3007.9,3007.3,3.049869]
[1720338501069,1.15130418,3007.8,3007.3,3.049869]
[1720338501270,2.32722,3007.9,3007.3,3.049869]
[1720338501935,2.32722,3007.9,3007.3,5.377519]
[1720338502441,0.05,3008.0,3007.4,2.32757]
[1720338502624,0.05,3008.0,3007.6,2.32743]
[1720338503408,0.05,3008.0,3007.8,2.32723]
[1720338506041,0.05,3008.0,3007.8,2.39371866]
[1720338506242,0.05,3008.0,3007.9,7.2043]
[1720338506538,0.05,3008.0,3007.9,7.93137887]
[1720338506833,0.05,3008.0,3007.9,10.93137887]
[1720338507800,0.05,3008.0,3007.9,11.91637887]
[1720338509824,0.05,3008.0,3007.9,13.25857887]
[1720338514138,7.41,3008.7,3008.6,4.82706]
[1720338514342,7.41,3009.4,3008.8,2.3265]
[1720338514559,2.32594,3009.6,3008.8,2.3265]
[1720338514734,2.326,3009.5,3008.8,4.65294]
[1720338514934,0.465194,3009.4,3008.8,2.32644]
[1720338515844,2.791244,3009.4,3008.8,2.32644]
[1720338517290,4.65189,3009.6,3008.9,2.32643]
[1720338517637,2.32594,3009.6,3008.9,2.32643]
[1720338517856,2.32597,3009.5,3008.9,2.32643]
[1720338520087,2.3259,3009.6,3009.0,0.5]
[1720338520491,2.08,3009.8,3009.0,2.82634]
[1720338520643,2.08,3009.8,3009.0,3.34820449]
[1720338521095,2.32585,3009.7,3009.1,2.32627]
[1720338521278,2.08,3009.8,3009.1,2.32627]
[1720338521476,2.08,3009.8,3009.2,4.83159]
[1720338521987,6.20751,3009.8,3009.2,4.83159]
[1720338522167,2.3259,3009.6,3009.0,0.5]
[1720338522367,3.88178,3009.8,3009.0,2.82635]
[1720338522679,2.08,3009.8,3009.2,2.32619]
[1720338522895,2.08,3009.8,3009.3,2.32611]
[1720338523367,2.08,3009.8,3009.4,4.83144]
[1720338523746,2.08,3009.8,3009.4,2.5054]
[1720338523941,2.08,3009.8,3009.3,2.32606]
[1720338524187,4.40574,3009.8,3009.2,2.32614]
[1720338524358,6.17488,3009.8,3009.2,2.32614]
[1720338524581,4.40574,3009.8,3009.2,2.32614]
[1720338525079,4.40574,3009.8,3009.3,2.32605]
[1720338525080,2.08,3009.8,3009.3,2.32605]
[1720338525402,2.08,3009.8,3009.2,2.32614]
[1720338525403,2.08,3009.8,3009.4,2.32603]
[1720338525992,2.08,3009.8,3009.5,2.32593]
[1720338526291,2.08,3009.8,3009.6,2.32587]
[1720338526676,2.08,3009.8,3009.6,4.83127]
[1720338526885,2.08,3009.8,3009.6,2.32587]
[1720338527070,2.08,3009.8,3009.4,2.32597]
[1720338527271,2.08,3009.8,3009.4,2.809107]
[1720338527584,2.08,3009.8,3009.5,2.32591]
[1720338527970,2.08,3009.8,3009.6,2.32588]
[1720338528903,2.08,3009.8,3009.6,2.32582]
[1720338529070,2.08,3009.8,3009.7,2.32581]
[1720338530393,2.08,3009.8,3009.5,2.8259]
[1720338530702,2.08,3009.8,3009.6,2.32586]
[1720338531803,2.3253,3010.4,3009.6,2.32586]
[1720338531804,2.6465,3010.9,3010.2,2.32536]
[1720338532203,6.1914,3010.9,3010.2,2.32537]
[1720338532419,6.1914,3010.9,3010.1,3.0]
[1720338532420,2.32507,3010.7,3010.1,3.0]
[1720338532625,2.32498,3010.8,3009.9,2.32564]
[1720338532820,3.8665,3010.9,3009.8,3.0]
[1720338532988,6.19138,3010.9,3010.2,2.3254]
[1720338533187,2.32496,3010.8,3010.0,2.32552]
[1720338533788,2.32496,3010.8,3010.1,2.32549]
[1720338535818,0.984,3010.7,3010.1,2.32549]
[1720338536025,0.984,3010.4,3009.7,2.82575]
[1720338536517,3.85915,3010.6,3009.8,2.32566]
[1720338536719,3.85915,3010.6,3009.9,2.32565]
[1720338537286,2.3252,3010.5,3009.9,2.32565]
[1720338537487,0.984,3010.2,3009.7,2.82575]
[1720338537895,7.41,3010.3,3009.8,2.32572]
[1720338539225,7.41,3010.3,3010.0,0.5]
[1720338539523,8.734189,3010.3,3010.0,0.5]
[1720338539732,7.41,3010.3,3010.0,0.5]
[1720338543397,7.41,3010.3,3010.0,2.82557]
[1720338544736,7.41,3010.3,3010.2,2.32542]
[1720338545101,6.06758,3010.9,3010.2,2.32542]
[1720338545296,1.15026338,3010.8,3010.3,2.32534]
[1720338545498,6.06758,3010.9,3010.3,2.32534]
[1720338545706,1.15026028,3010.8,3010.3,2.32534]
[1720338546025,5.43241805,3010.9,3010.3,2.32534]
[1720338546229,1.15025926,3010.8,3010.3,2.32534]
[1720338546427,5.43241805,3010.9,3010.1,2.32544]
[1720338546599,2.03546177,3010.8,3010.3,2.32528]
[1720338546905,0.88520186,3010.8,3010.3,2.32528]
[1720338547330,0.88520186,3010.8,3010.4,2.32527]
[1720338547734,0.984,3010.7,3010.4,2.32527]
[1720338548152,0.88520186,3010.8,3010.4,2.32527]
[1720338548463,1.88042105,3010.7,3010.4,2.32527]
[1720338548613,0.73016199,3010.7,3010.4,2.32527]
[1720338549474,4.7267,3010.9,3010.4,2.32527]
[1720338549751,1.15024713,3010.8,3010.4,2.32521]
[1720338549948,3.7427,3010.9,3010.4,2.32521]
[1720338550114,3.7427,3010.9,3010.5,2.32518]
[1720338550526,1.15014801,3010.8,3010.5,2.32518]
[1720338550727,3.7427,3010.9,3010.5,2.32518]
[1720338550929,1.63393748,3010.8,3010.4,2.32521]
[1720338551219,0.48374905,3010.8,3010.4,2.32521]
[1720338552147,0.48374905,3010.8,3010.4,4.65042]
[1720338552356,3.7427,3010.9,3010.4,4.65042]
[1720338552647,1.15015339,3010.8,3010.4,4.65043]
[1720338552859,1.15015339,3010.8,3010.4,2.32521]
[1720338553023,3.7427,3010.9,3010.4,2.32521]
[1720338553350,1.15015414,3010.8,3010.5,0.5]
[1720338553651,1.22,3010.9,3010.5,2.82515]
[1720338553957,1.15015341,3010.8,3010.5,0.5]
[1720338554124,1.22,3010.9,3010.5,4.0644]
[1720338554447,1.22,3010.9,3010.5,0.5]
[1720338554610,1.22,3010.9,3010.5,2.82518]
[1720338555150,1.22,3010.9,3010.5,0.5]
[1720338555654,1.22,3010.9,3010.5,2.82518]
[1720338556124,1.22,3010.9,3010.6,2.3251]
[1720338558016,1.22,3010.9,3010.8,2.32496]
[1720338562738,1.22,3010.9,3010.7,5.15002]
[1720338562942,1.22,3010.9,3010.8,2.32496]
[1720338564161,1.22,3010.9,3010.8,2.82496]
[1720338565558,1.22,3010.9,3010.8,0.5]
[1720338567149,1.81804105,3010.9,3010.8,0.5]
[1720338568226,1.22,3010.9,3010.8,0.5]
[1720338577258,1.22,3010.9,3010.8,2.82496]
[1720338580972,1.22,3010.9,3010.8,0.5]
[1720338583879,2.37004694,3010.9,3010.8,0.5]
[1720338584859,2.37005134,3010.9,3010.8,0.5]
[1720338585941,1.22,3010.9,3010.8,0.5]
[1720338586142,2.37003819,3010.9,3010.8,0.5]
[1720338588047,1.22,3010.9,3010.8,0.5]
[1720338588298,2.37009961,3010.9,3010.8,0.5]
[1720338588855,2.37003728,3010.9,3010.8,0.5]
[1720338589178,2.37003455,3010.9,3010.8,0.5]
[1720338589346,1.22,3010.9,3010.8,0.5]
[1720338593149,2.37004729,3010.9,3010.8,0.5]
[1720338594461,1.22,3010.9,3010.8,0.5]
[1720338594861,3.52013556,3010.9,3010.8,0.5]
[1720338597886,3.52014808,3010.9,3010.8,0.5]
[1720338598385,2.37008066,3010.9,3010.8,0.5]
[1720338600793,2.37008027,3010.9,3010.8,0.5]
[1720338601665,4.69496027,3010.9,3010.8,0.5]
[1720338601864,5.67402735,3010.9,3010.8,0.5]
[1720338602463,7.99890735,3010.9,3010.8,0.5]
[1720338603362,8.91352374,3010.9,3010.8,0.5]
[1720338603562,7.99903476,3010.9,3010.8,0.5]
[1720338603889,9.07959263,3010.9,3010.8,0.5]
[1720338604295,8.91354001,3010.9,3010.8,0.5]
[1720338605458,9.62958179,3010.9,3010.8,0.5]
[1720338606009,12.28968179,3010.9,3010.8,0.5]
[1720338606301,20.04382437,3010.9,3010.8,0.5]
[1720338606451,18.9700229,3010.9,3010.8,0.5]
[1720338606856,22.4750229,3010.9,3010.8,0.5]
[1720338607094,24.87363523,3010.9,3010.8,0.5]
[1720338607395,15.29003666,3010.9,3010.8,0.5]
[1720338607593,7.66472239,3010.9,3010.8,0.5]
[1720338607788,7.93484476,3010.9,3010.8,0.5]
[1720338607954,7.02012958,3010.9,3010.8,0.5]
[1720338608156,4.69524958,3010.9,3010.8,0.5]
[1720338609163,7.02012958,3010.9,3010.8,0.5]
[1720338609363,12.76672159,3010.9,3010.8,0.5]
[1720338609590,16.172303,3010.9,3010.8,0.5]
[1720338609759,16.17236731,3010.9,3010.8,0.5]
[1720338609952,18.22686631,3010.9,3010.8,0.5]
[1720338610453,19.67737195,3010.9,3010.8,0.5]
[1720338610654,22.67737195,3010.9,3010.8,0.5]
[1720338611889,24.73084375,3010.9,3010.8,0.5]
[1720338612189,22.67737195,3010.9,3010.8,0.5]
[1720338612393,24.73048678,3010.9,3010.8,0.5]
[1720338612767,22.67749435,3010.9,3010.8,0.5]
[1720338612968,24.7306849,3010.9,3010.8,0.5]
[1720338613390,23.04860059,3010.9,3010.8,0.5]
[1720338614395,25.10079661,3010.9,3010.8,0.5]
[1720338614801,27.42567661,3010.9,3010.8,0.5]
[1720338614986,25.37348059,3010.9,3010.8,0.5]
[1720338615565,25.37348059,3010.9,3009.5,2.5643]
[1720338615566,22.71338059,3010.9,3009.5,2.5643]
[1720338615767,2.32581,3009.7,3009.5,2.5643]
[1720338616402,2.32574,3009.8,3009.5,2.5643]
[1720338616403,4.65156,3009.8,3009.5,2.5643]
[1720338616704,2.32576,3009.8,3009.5,2.5643]